{"text_format":"3","workbook":"xlsx","n_sheets":1,"sheets":["岗位"],"not_rendered":{"defined_names":3},"read":"whole","date_system":"1900"}

{"sheet":"岗位","index":0,"n_rows":38,"n_cols":10,"rows_kept":38}
["中铁集装箱运输有限责任公司\n2026年度招聘普通高校毕业生岗位需求情况表"]
["单位名称","岗位代码","岗位名称",null,null,"招聘\n人数","工作\n地点","学历要求","专业要求","备注"]
["中铁国际多式联运有限公司",202601,"财务管理",{"$f":"B3&A3&C3","v":"202601中铁国际多式联运有限公司财务管理"},"202601多联公司财务管理",1,"北京","硕士研究生及以上","金融、金融学、会计、会计学、财务管理，及上述专业的相近专业","北京生源优先"]
["中铁国际多式联运有限公司",202602,"财务管理",{"$f":"B4&A4&C4","v":"202602中铁国际多式联运有限公司财务管理"},"202602多联公司财务管理",2,"北京","硕士研究生及以上","金融、金融学、会计、会计学、财务管理，及上述专业的相近专业"]
["中铁国际多式联运有限公司",202603,"物流经营","202603中铁国际多式联运有限公司物流经营","202603多联公司物流经营",1,"北京","硕士研究生及以上","交通运输、交通运输规划与管理、交通运输工程（运输、物流方向）、智慧交通、智能运输工程、物流管理、物流工程、物流工程与管理、供应链管理、市场营销，及上述专业的相近专业","北京生源优先"]
["中铁国际多式联运有限公司",202604,"物流经营","202604中铁国际多式联运有限公司物流经营","202604多联公司物流经营",1,"北京","硕士研究生及以上","交通运输、交通运输规划与管理、交通运输工程（运输、物流方向）、智慧交通、智能运输工程、物流管理、物流工程、物流工程与管理、供应链管理、市场营销，及上述专业的相近专业"]
["中铁国际多式联运有限公司",202605,"市场分析","202605中铁国际多式联运有限公司市场分析","202605多联公司市场分析",1,"北京","硕士研究生及以上","物流管理、物流工程、物流工程与管理、供应链管理、市场营销、大数据管理与应用、数据科学、信息资源管理、经济学、经济统计学、应用经济学、金融学、金融、金融工程、经济与金融，及上述专业的相近专业","北京生源优先"]
["中铁国际多式联运有限公司",202606,"铁海联运","202606中铁国际多式联运有限公司铁海联运","202606多联公司铁海联运",1,"北京","硕士研究生及以上","交通运输、交通运输规划与管理、交通运输工程（运输、物流方向）、智慧交通、智能运输工程、物流管理、物流工程、物流工程与管理、供应链管理、市场营销、水路交通运输、交通管理（航运方向）、国际经济与贸易、贸易经济、国际商务、海关管理，及上述专业的相近专业"]
["中铁集装箱\n北京分公司",202607,"信息管理","202607中铁集装箱\n北京分公司信息管理","202607北京分公司信息管理",1,"北京","硕士研究生及以上","人工智能、计算机科学与技术、软件工程、网络工程、网络安全、信息安全、物联网工程、智能科学与技术、数据科学与大数据技术、网络空间安全、信息管理与信息系统，及上述专业的相近专业"]
["中铁集装箱\n北京分公司",202608,"物流经营","202608中铁集装箱\n北京分公司物流经营","202608北京分公司物流经营",1,"北京","硕士研究生及以上","交通运输、交通运输规划与管理、交通运输工程（运输、物流方向）、智慧交通、智能运输工程、物流管理、物流工程、物流工程与管理、供应链管理、市场营销，及上述专业的相近专业"]
["中铁集装箱\n北京分公司",202609,"财务管理","202609中铁集装箱\n北京分公司财务管理","202609北京分公司财务管理",1,"北京","硕士研究生及以上","金融、金融学、会计、会计学、财务管理，及上述专业的相近专业","北京生源优先"]
["中铁集装箱\n北京分公司",202610,"国际联运","202610中铁集装箱\n北京分公司国际联运","202610北京分公司国际联运",1,"北京","硕士研究生及以上","交通运输、交通运输规划与管理、交通运输工程（运输、物流方向）、智慧交通、智能运输工程、物流管理、物流工程、物流工程与管理、供应链管理、市场营销、国际经济与贸易、贸易经济、国际商务，及上述专业的相近专业","北京生源优先"]
["中铁集装箱\n北京分公司",202611,"集装化装备设计及研发","202611中铁集装箱\n北京分公司集装化装备设计及研发","202611北京分公司集装化装备设计及研发",1,"北京","硕士研究生及以上","机械工程、机械设计制造及其自动化、材料成型及控制工程、机械电子工程、过程中装备与控制工程、机械工艺技术、智能制造工程、机械、机械设计及理论，及上述专业的相近专业"]
["中铁集装箱\n哈尔滨分公司",202612,"财务管理","202612中铁集装箱\n哈尔滨分公司财务管理","202612哈尔滨分公司财务管理",1,"哈尔滨","本科及以上","金融、金融学、会计、会计学、财务管理，及上述专业的相近专业"]
["中铁集装箱\n哈尔滨分公司",202613,"市场分析","202613中铁集装箱\n哈尔滨分公司市场分析","202613哈尔滨分公司市场分析",1,"哈尔滨","本科及以上","物流管理、物流工程、物流工程与管理、供应链管理、市场营销、大数据管理与应用、数据科学、信息资源管理、经济学、经济统计学、应用经济学、金融学、金融、金融工程、经济与金融，及上述专业的相近专业"]
["中铁集装箱\n沈阳分公司\n（锦州营业部）",202614,"铁海联运","202614中铁集装箱\n沈阳分公司\n（锦州营业部）铁海联运","202614沈阳分公司（锦州营业部）铁海联运",1,"锦州","本科及以上","交通运输、交通运输规划与管理、交通运输工程（运输、物流方向）、智慧交通、智能运输工程、物流管理、物流工程、物流工程与管理、供应链管理、市场营销、水路交通运输、交通管理（航运方向）、国际经济与贸易、贸易经济、国际商务，及上述专业的相近专业"]
["中铁集装箱\n沈阳分公司\n（沈阳营业部）",202615,"铁海联运","202615中铁集装箱\n沈阳分公司\n（沈阳营业部）铁海联运","202615沈阳分公司（沈阳营业部）铁海联运",2,"沈阳","本科及以上","交通运输、交通运输规划与管理、交通运输工程（运输、物流方向）、智慧交通、智能运输工程、物流管理、物流工程、物流工程与管理、供应链管理、市场营销、水路交通运输、交通管理（航运方向）、国际经济与贸易、贸易经济、国际商务，及上述专业的相近专业"]
["中铁集装箱\n沈阳分公司\n（吉林营业部）",202616,"铁海联运","202616中铁集装箱\n沈阳分公司\n（吉林营业部）铁海联运","202616沈阳分公司（吉林营业部）铁海联运",1,"长春","本科及以上","交通运输、交通运输规划与管理、交通运输工程（运输、物流方向）、智慧交通、智能运输工程、物流管理、物流工程、物流工程与管理、供应链管理、市场营销、水路交通运输、交通管理（航运方向）、国际经济与贸易、贸易经济、国际商务，及上述专业的相近专业"]
["中铁集装箱\n沈阳分公司",202617,"铁海联运","202617中铁集装箱\n沈阳分公司铁海联运","202617沈阳分公司铁海联运",2,"沈阳","本科及以上","交通运输、交通运输规划与管理、交通运输工程（运输、物流方向）、智慧交通、智能运输工程、物流管理、物流工程、物流工程与管理、供应链管理、市场营销、水路交通运输、交通管理（航运方向）、国际经济与贸易、贸易经济、国际商务，及上述专业的相近专业"]
["中铁集装箱\n太原分公司",202618,"财务管理","202618中铁集装箱\n太原分公司财务管理","202618太原分公司财务管理",1,"太原","本科及以上","金融、金融学、会计、会计学、财务管理，及上述专业的相近专业"]
["中铁集装箱\n呼和浩特分公司\n（二连浩特营业部）",202619,"物流经营","202619中铁集装箱\n呼和浩特分公司\n（二连浩特营业部）物流经营","202619呼和浩特分公司（二连浩特营业部）物流经营",1,"二连浩特","本科及以上","交通运输、交通运输规划与管理、交通运输工程（运输、物流方向）、智慧交通、智能运输工程、物流管理、物流工程、物流工程与管理、供应链管理、市场营销，及上述专业的相近专业"]
["中铁集装箱\n郑州分公司\n（洛阳营业部）",202620,"物流经营","202620中铁集装箱\n郑州分公司\n（洛阳营业部）物流经营","202620郑州分公司（洛阳营业部）物流经营",1,"洛阳","本科及以上","交通运输、交通运输规划与管理、交通运输工程（运输、物流方向）、智慧交通、智能运输工程、物流管理、物流工程、物流工程与管理、供应链管理、市场营销，及上述专业的相近专业"]
["中铁集装箱\n武汉分公司\n（襄阳营业部）",202621,"物流经营","202621中铁集装箱\n武汉分公司\n（襄阳营业部）物流经营","202621武汉分公司（襄阳营业部）物流经营",1,"襄阳","本科及以上","交通运输、交通运输规划与管理、交通运输工程（运输、物流方向）、智慧交通、智能运输工程、物流管理、物流工程、物流工程与管理、供应链管理、市场营销，及上述专业的相近专业"]
["中铁集装箱\n济南分公司",202622,"英语翻译\n及校对","202622中铁集装箱\n济南分公司英语翻译\n及校对","202622济南分公司英语翻译\n及校对",1,"济南","本科及以上","英语、商务英语、英语语言文学、英语口译、英语笔译、翻译（英语方向），及上述专业的相近专业"]
["中铁集装箱\n上海分公司",202623,"财务管理","202623中铁集装箱\n上海分公司财务管理","202623上海分公司财务管理",1,"上海","本科及以上","金融、金融学、会计、会计学、财务管理，及上述专业的相近专业"]
["中铁集装箱\n上海分公司",202624,"国际联运","202624中铁集装箱\n上海分公司国际联运","202624上海分公司国际联运",1,"上海","本科及以上","交通运输、交通运输规划与管理、交通运输工程（运输、物流方向）、智慧交通、智能运输工程、物流管理、物流工程、物流工程与管理、供应链管理、市场营销、国际经济与贸易、贸易经济、国际商务，及上述专业的相近专业"]
["中铁集装箱\n上海分公司\n（南京营业部）",202625,"物流经营","202625中铁集装箱\n上海分公司\n（南京营业部）物流经营","202625上海分公司（南京营业部）物流经营",1,"南京","本科及以上","交通运输、交通运输规划与管理、交通运输工程（运输、物流方向）、智慧交通、智能运输工程、物流管理、物流工程、物流工程与管理、供应链管理、市场营销，及上述专业的相近专业"]
["中铁集装箱\n南昌分公司\n（南昌经营部）",202626,"物流经营","202626中铁集装箱\n南昌分公司\n（南昌经营部）物流经营","202626南昌分公司（南昌经营部）物流经营",1,"南昌","本科及以上","交通运输、交通运输规划与管理、交通运输工程（运输、物流方向）、智慧交通、智能运输工程、物流管理、物流工程、物流工程与管理、供应链管理、市场营销，及上述专业的相近专业"]
["中铁集装箱\n广州分公司",202627,"财务管理","202627中铁集装箱\n广州分公司财务管理","202627广州分公司财务管理",1,"广州","本科及以上","金融、金融学、会计、会计学、财务管理，及上述专业的相近专业"]
["中铁集装箱\n南宁分公司",202628,"国际联运","202628中铁集装箱\n南宁分公司国际联运","202628南宁分公司国际联运",1,"南宁","本科及以上","交通运输、交通运输规划与管理、交通运输工程（运输、物流方向）、智慧交通、智能运输工程、物流管理、物流工程、物流工程与管理、供应链管理、市场营销、国际经济与贸易、贸易经济、国际商务，及上述专业的相近专业"]
["中铁集装箱\n南宁分公司",202629,"物流经营","202629中铁集装箱\n南宁分公司物流经营","202629南宁分公司物流经营",1,"南宁","本科及以上","交通运输、交通运输规划与管理、交通运输工程（运输、物流方向）、智慧交通、智能运输工程、物流管理、物流工程、物流工程与管理、供应链管理、市场营销，及上述专业的相近专业"]
["中铁集装箱\n成都分公司",202630,"信息管理","202630中铁集装箱\n成都分公司信息管理","202630成都分公司信息管理",1,"成都","本科及以上","人工智能、计算机科学与技术、软件工程、网络工程、网络安全、信息安全、物联网工程、智能科学与技术、数据科学与大数据技术、网络空间安全、信息管理与信息系统，及上述专业的相近专业"]
["中铁集装箱\n成都分公司\n（成都营业部）",202631,"物流经营","202631中铁集装箱\n成都分公司\n（成都营业部）物流经营","202631成都分公司\n（成都营业部）物流经营",2,"成都","本科及以上","交通运输、交通运输规划与管理、交通运输工程（运输、物流方向）、智慧交通、智能运输工程、物流管理、物流工程、物流工程与管理、供应链管理、市场营销，及上述专业的相近专业"]
["中铁集装箱\n昆明分公司",202632,"信息管理","202632中铁集装箱\n昆明分公司信息管理","202632昆明分公司信息管理",1,"昆明","本科及以上","人工智能、计算机科学与技术、软件工程、网络工程、网络安全、信息安全、物联网工程、智能科学与技术、数据科学与大数据技术、网络空间安全、信息管理与信息系统，及上述专业的相近专业"]
["中铁集装箱\n昆明分公司",202633,"财务管理","202633中铁集装箱\n昆明分公司财务管理","202633昆明分公司财务管理",1,"昆明","本科及以上","金融、金融学、会计、会计学、财务管理，及上述专业的相近专业"]
["中铁集装箱\n昆明分公司",202634,"国际联运","202634中铁集装箱\n昆明分公司国际联运","202634昆明分公司国际联运",1,"昆明","本科及以上","交通运输、交通运输规划与管理、交通运输工程（运输、物流方向）、智慧交通、智能运输工程、物流管理、物流工程、物流工程与管理、供应链管理、市场营销、国际经济与贸易、贸易经济、国际商务，及上述专业的相近专业"]
["中铁集装箱\n兰州分公司\n（嘉峪关营业部）",202635,"物流经营","202635中铁集装箱\n兰州分公司\n（嘉峪关营业部）物流经营","202635兰州分公司（嘉峪关营业部）物流经营",1,"嘉峪关","本科及以上","交通运输、交通运输规划与管理、交通运输工程（运输、物流方向）、智慧交通、智能运输工程、物流管理、物流工程、物流工程与管理、供应链管理、市场营销，及上述专业的相近专业"]
["中铁集装箱\n青藏分公司",202636,"物流经营","202636中铁集装箱\n青藏分公司物流经营","202636青藏分公司物流经营",1,"西宁","本科及以上","交通运输、交通运输规划与管理、交通运输工程（运输、物流方向）、智慧交通、智能运输工程、物流管理、物流工程、物流工程与管理、供应链管理、市场营销，及上述专业的相近专业"]